Cogmind - Beta 9.4 @@@ ROGUE MODE // 2020.03.26 @ 23:40:14 Player: Lefty Result: Destroyed by G-34 Mercenary with Small Laser Performance ------------- Evolutions (1) 500 Regions Visited (2) 400 Robots Destroyed (38) 190 Value Destroyed (1011) 1011 Prototype IDs (3) 60 Alien Tech Used (0) 0 Bonus (0) 0 TOTAL SCORE: 2161 Bonus ------- None Cogmind --------- Core Integrity 0/400 Matter 300/300 Energy 100/100 System Corruption 0% Temperature Cool (6) Movement Core (300) Ox5 Location -9/Materials Parts ------- > --- POWER (1) -------- Heavy Ion Engine > --- PROPULSION (3) --- (None) > --- UTILITY (3) ------ Medium Storage Unit Armor Integrity Analyzer > --- WEAPON (2) ------- (None) > --- INVENTORY (8) ---- Heavy Ion Engine Heavy Ion Engine Medium Storage Unit Light Armor Plating Peak State ------------ > --- POWER ------------ Heavy Ion Engine > --- PROPULSION ------- Aluminum Leg Aluminum Leg Aluminum Leg > --- UTILITY ---------- Medium Storage Unit Light Armor Plating Light Armor Plating > --- WEAPON ----------- Beam Rifle Heavy Assault Rifle > --- INVENTORY -------- Ion Engine Improved Ion Engine Heavy Ion Engine Heavy Ion Engine Medium Storage Unit Grenade Launcher [Rating: 14] Favorites ----------- Power Ion Engine Engine Ion Engine Propulsion Aluminum Leg Leg Aluminum Leg Utility Medium Storage Unit Device ECM Suite Storage Medium Storage Unit Processor Targeting Computer Protection Light Armor Plating Weapon Light Assault Rifle Energy Gun Medium Laser Energy Cannon Beam Cannon Ballistic Gun Light Assault Rifle Launcher Grenade Launcher Special Weapon Plasma Cutter Build | -11 -10 -9 ------- Run | Scr Mat Mat Slots Evolved 2 | . . 2 Power . | . . . Propulsion 1 | . . 1 Utility 1 | . . 1 Weapon . | . . . Parts Attached 57 | 5 29 23 Power 8 | 1 4 3 Engine 8 | 1 4 3 Core . | . . . Reactor . | . . . Propulsion 11 | 2 7 2 Treads . | . . . Leg 11 | 2 7 2 Wheel . | . . . Hover . | . . . Flight . | . . . Utility 12 | . 5 7 Device 4 | . 2 2 Storage 3 | . 2 1 Processor 2 | . 1 1 Hackware . | . . . Protection 3 | . . 3 Artifact . | . . . Weapon 26 | 2 13 11 Energy Gun 12 | 1 4 7 Energy Cannon 1 | . 1 . Ballistic Gun 7 | 1 4 2 Ballistic Cannon . | . . . Launcher 5 | . 4 1 Special Weapon 1 | . . 1 Impact Weapon . | . . . Slashing Weapon . | . . . Piercing Weapon . | . . . Special Melee Weapon . | . . . Unidentified Prototypes 1 | . . 1 Parts Lost 23 | . 7 16 Power 2 | . 1 1 Propulsion 6 | . 2 4 Utility 3 | . . 3 Weapon 12 | . 4 8 Highest Loss Streak 8 | . 6 8 Average Slot Usage (%) 88 | . 90 87 Engine 11 | . 12 11 Leg 27 | . 27 27 Device 1 | . 1 1 Storage 10 | . 9 11 Processor 9 | . 11 7 Protection 3 | . . 9 Energy Gun 12 | . 13 11 Ballistic Gun 8 | . 10 5 Launcher 1 | . 2 . Naked Turns . | . . . Heaviest Build 28 | 6 18 28 Greatest Support 30 | 20 20 30 Greatest Overweight (x) 6 | . 2 6 Average Overweight (x) . | . . . Largest Inventory Capacity 8 | 4 8 8 Average Capacity 6 | 4 6 8 Most Carried 8 | 3 8 8 Average Carried 5 | . 5 6 Final Capacity 8 | 4 8 8 Final Carried 8 | 1 8 4 Class Distribution -------------------- 61% | Mutant 38% | Scavenger-Mutant Dominant Class ---------------- Mutant | -10/Materials Scavenger-Mutant | -9/Materials Resources | -11 -10 -9 ----------- Run | Scr Mat Mat Matter Collected 900 | 253 353 294 Remotely . | . . . Salvage Created 1674 | 48 656 970 Parts 84 | . 37 47 Haulers Intercepted 3 | . 1 2 Recyclers Shooed 4 | . 1 3 Parts Field Recycled . | . . . Retrieved Matter . | . . . Parts Self-Destructed . | . . . Prevented . | . . . Kills | -11 -10 -9 ------- Run | Scr Mat Mat Combat Hostiles Destroyed 23 | 1 10 12 Melee 1 | . . 1 Guns 17 | 1 6 10 Cannons 3 | . 2 1 AOE 2 | . 2 . Classes Destroyed 9 | 1 6 2 Worker 1 | . 1 . Builder 2 | . 2 . Hauler 3 | . 1 2 Recycler 5 | . 2 3 Operator 1 | . 1 . Watcher 3 | . 3 . Grunt 18 | 1 10 7 Brawler 1 | . . 1 Sentry 4 | . . 4 Best Kill Streak 9 | 1 9 3 Combat Bots Only 4 | 1 4 3 Max Kills in Single Turn 3 | 1 3 1 Gunslinging . | . . . Exploded 1 | . 1 . Melee 1 | . . 1 Uniques/NPCs Destroyed . | . . . Combat | -11 -10 -9 -------- Run | Scr Mat Mat Damage Taken 2801 | 23 994 1784 Core 651 | 23 221 407 Absorbed by Shields 86 | . . 86 Core Remaining (%) 46 | 90 2 . Volleys Fired 119 | 3 53 63 Largest 2 | 2 2 2 Hottest 121 | 70 100 121 Shots Fired 204 | 6 84 114 Gun 185 | 6 70 109 Cannon 6 | . 6 . Launcher 8 | . 8 . Special 5 | . . 5 Kinetic 64 | 3 29 32 Thermal 132 | 3 47 82 Explosive 8 | . 8 . Electromagnetic . | . . . Robot Hit Streak 10 | 3 9 10 Robot Miss Streak 4 | 1 3 4 Penetration Max . | . . . Secondary Targets 4 | . 1 3 Max Gunslinging Chain 1 | . 1 1 Shots Hit Robots 141 | 4 56 81 Core Hits 73 | 2 37 34 Critical Hits 1 | . . 1 Critical Kills . | . . . Critical Parts Destroyed 1 | . . 1 Melee Attacks . | . . . Impact . | . . . Slashing . | . . . Piercing . | . . . Sneak Attacks . | . . . Combat Hostiles . | . . . Follow-up Attacks . | . . . Damage Inflicted 2288 | 44 1069 1175 Guns 1706 | 44 536 1126 Cannons 106 | . 106 . Explosions 427 | . 427 . Melee . | . . . Ramming 6 | . . 6 Kinetic 442 | 7 185 250 Thermal 1413 | 37 457 919 Explosive 427 | . 427 . Electromagnetic . | . . . Impact . | . . . Slashing . | . . . Piercing . | . . . Highest Corruption 1 | . 1 . Average Corruption 1 | . 1 . Corruption Purged . | . . . Effects 3 | . 3 . Energy Discharges 2 | . 2 . Targeting Errors 1 | . 1 . Overload Shots . | . . . Overflow Damage . | . . . Projectiles . | . . . Explosions . | . . . Melee . | . . . Knockbacks . | . . . Impact . | . . . Kinetic . | . . . Secondary . | . . . Self-Inflicted Damage 18 | . 18 . Shots 2 | . 2 . Rammed 8 | . . 8 Targets Rammed 9 | . . 9 Kicked 1 | . . 1 Crushed . | . . . Highest Temperature 371 | 62 286 371 Average Temperature 101 | 31 90 110 Received Heat Transfer 1526 | 12 540 974 Effects 6 | . . 6 Shutdowns 1 | . . 1 Energy Bleed 1 | . . 1 Interference 2 | . . 2 Short Circuit 2 | . . 2 Siege Activations . | . . . Robots Corrupted . | . . . Combat Hostiles . | . . . Parts Fried . | . . . Impact Corruptions . | . . . Robots Melted . | . . . Combat Hostiles . | . . . Parts Melted 5 | . 2 3 Heat Transferred 3501 | 111 1114 2276 Parts Sabotaged . | . . . Parts Stolen . | . . . Parts Stripped . | . . . Power Chain Reactions . | . . . Missiles Intercepted . | . . . Alert | -11 -10 -9 ------- Run | Scr Mat Mat Peak Influence 232 | 20 142 232 Average Influence 81 | 1 66 110 Maximum Alert Level 1 | . . 1 Low Security (%) 96 | 100 100 89 Level 1 3 | . . 10 Level 2 . | . . . Level 3 . | . . . Level 4 . | . . . Level 5 . | . . . High Security . | . . . Max Security . | . . . Squads Dispatched 4 | . 2 2 Investigation 1 | . 1 . Extermination . | . . . Reinforcement 3 | . 1 2 Assault . | . . . Garrison . | . . . Intercept . | . . . Construction Impeded . | . . . Haulers Reinforced . | . . . Stealth | -11 -10 -9 --------- Run | Scr Mat Mat Distress Signals 2 | . 1 1 Communications Jammed . | . . . Distress Signals . | . . . Times Spotted 42 | 1 17 24 Peak Tracking Total 7 | 1 5 7 Tactical Retreats 5 | . . 5 Traps | -11 -10 -9 ------- Run | Scr Mat Mat Traps Triggered 2 | . 2 . Indirectly . | . . . Trap Hack Attempts . | . . . Triggered . | . . . Disarmed . | . . . Reprogrammed . | . . . Reused . | . . . Traps Extracted . | . . . Installed . | . . . Triggered . | . . . Machines | -11 -10 -9 ---------- Run | Scr Mat Mat Machines Disabled 2 | . 2 . Max in Single Turn 1 | . 1 . Machines Sabotaged . | . . . Garrisons Compromised . | . . . Overloaded Fab Kills . | . . . Fab Network Shutdowns . | . . . Hacking | -11 -10 -9 --------- Run | Scr Mat Mat Machines Accessed 9 | . 8 1 Terminals 5 | . 5 . Fabricators . | . . . Repair Stations 1 | . 1 . Recycling Units 3 | . 2 1 Scanalyzers . | . . . Garrison Access . | . . . Total Hacks 22 | . 18 4 Successful 15 | . 12 3 Failed 7 | . 6 1 Catastrophic 1 | . 1 . Database Lockouts . | . . . Manual . | . . . Terminals 13 | . 13 . Fabricators . | . . . Repair Stations 3 | . 3 . Recycling Units 6 | . 2 4 Scanalyzers . | . . . Garrison Access . | . . . Terminal Hacks 9 | . 9 . Record 4 | . 4 . Robot Analysis 1 | . 1 . Prototype ID Bank 1 | . 1 . Locate Traps 2 | . 2 . Dispatch Records 1 | . 1 . Fabricator Hacks . | . . . Repair Station Hacks 2 | . 2 . Scan Component 1 | . 1 . Repair 1 | . 1 . Recycling Unit Hacks 4 | . 1 3 Recycle Component 1 | . . 1 Process 1 | . . 1 Report Inventory 2 | . 1 1 Scanalyzer . | . . . Garrison Access Hacks . | . . . Unauthorized Hacks . | . . . Terminals . | . . . Fabricators . | . . . Repair Stations . | . . . Recycling Units . | . . . Scanalyzers . | . . . Garrison Access . | . . . Data Cores Recovered . | . . . Used . | . . . Hacking Detections 4 | . 4 . Full Trace Events 1 | . 1 . Feedback Events . | . . . Feedback Blocked . | . . . Robot Schematics Acquired . | . . . Robots Built . | . . . Matter . | . . . Time . | . . . Total Robot Build Rating . | . . . Part Schematics Acquired . | . . . Parts Built . | . . . Matter . | . . . Time . | . . . Total Part Build Rating . | . . . Parts Repaired 1 | . 1 . Time 26 | . 26 . Parts Recycled 1 | . . 1 Recycled Matter 296 | . . 296 Retrieved Matter . | . . . Retrieved Components . | . . . Parts Scanalyzed . | . . . Part Schematics Acquired . | . . . Parts Damaged . | . . . Bothacking | -11 -10 -9 ------------ Run | Scr Mat Mat Used RIF Installer . | . . . Robots Hacked . | . . . Non-combat . | . . . Combat . | . . . Robot Hacks Applied . | . . . Relay Couplers Released . | . . . Robots Rewired . | . . . Allies Hacked . | . . . Hacks Repelled . | . . . Allies | -11 -10 -9 -------- Run | Scr Mat Mat Total Allies . | . . . Largest Group . | . . . Highest-Rated Group . | . . . Highest-Rated Ally . | . . . Total Orders . | . . . Ally Attacks . | . . . Total Damage . | . . . Kills . | . . . Allies Corrupted . | . . . Allies Melted . | . . . Intel | -11 -10 -9 ------- Run | Scr Mat Mat Robot Analysis Total 1 | . 1 . Derelict Logs Recovered . | . . . Drone Launches . | . . . Drone Recoveries . | . . . Exploration | -11 -10 -9 ------------- Run | Scr Mat Mat Turns Passed 1986 | 83 1118 785 Spaces Moved 1158 | 62 714 382 Core 27 | 15 2 10 Treads . | . . . Legs 1131 | 47 712 372 Wheels . | . . . Hover . | . . . Flight . | . . . Fastest Speed 50 | 50 100 120 Average Speed 121 | 103 120 128 Slowest Speed 350 | 120 150 350 Overloaded Moves . | . . . Propulsion Burnouts . | . . . Robots Hopped . | . . . Cave-ins Triggered . | . . . Exploration Rate (%) 41 | 6 96 21 Regions Visited 2 Branch Regions . Pre-discovered Areas . | . . . Known Exits Taken . | . . . Unknown Exits Taken 2 | 1 1 . Scrap Searched . | . . . Spaces Dug . | . . . Terrain Destroyed 38 | . 38 . Melee . | . . . Projectile . | . . . AOE 38 | . 38 . Actions | -11 -10 -9 --------- Run | Scr Mat Mat Total 1511 | 75 892 544 Wait 109 | . 63 46 Move 1156 | 61 713 382 Hop . | . . . Pick Up 42 | 6 22 14 Fast Attach 10 | . 9 1 Attach 27 | 5 9 13 Detach 1 | . . 1 Swap 20 | . 11 9 Drop 18 | . 12 6 Fire 119 | 3 53 63 Melee . | . . . Ram 7 | . . 7 Kick 2 | . . 2 Crush . | . . . Escape Stasis . | . . . Rewire . | . . . Trap . | . . . Miscellaneous . | . . . Route ------- -11/Scrapyard -10/Materials (discovered 4 exits: *Mat x3 / [*Min]) -9/Materials History --------- Turn | Location | Event 2 | -11/Scrapyard | Met Revision 17 63 | -11/Scrapyard | Discovered new exit (range 8) 84 | -11/Scrapyard | Entered Materials 314 | -10/Materials | Build established: Mutant 355 | -10/Materials | Discovered new exit (range 12) 423 | -10/Materials | Discovered new exit (range 5) 522 | -10/Materials | Core integrity fell below 50% 538 | -10/Materials | Core integrity fell below 20% 563 | -10/Materials | Lost 6 parts (1p2n3w) 676 | -10/Materials | Repaired Grenade Launcher 975 | -10/Materials | Discovered new exit (range 9) 1078 | -10/Materials | Discovered new exit (range 16) 1202 | -10/Materials | Entered another Materials area 1202 | -9/Materials | Evolved 2 slots: Propulsion x1, Utility x1 1555 | -9/Materials | Build established: Scavenger-Mutant 1913 | -9/Materials | Core integrity fell below 50% 1941 | -9/Materials | Lost 8 parts (1p3n1u3w) 1975 | -9/Materials | Core integrity fell below 20% 1987 | -9/Materials | Destroyed by G-34 Mercenary with Small Laser Last Messages --------------- 01884_ Sml. Laser destroyed. 01884_ Slammed into G-34 Mercenary. 01888_ G-34 Mercenary heat short circuits Broken Ion Engine. 01888_ Acquired 10 matter. 01895_ G-34 Mercenary heat damages Sml. Laser. 01900_ Grenade Launcher destroyed. 01910_ Hvy. Ion Engine destroyed. 01914_ R-06 Scavenger collects Sml. Laser. 01942_ Acquired Hvy. Ion Engine. 01945_ G-34 Mercenary destroyed. 01968_ Kicked G-34 Mercenary out of the way. 01970_ Aluminum Leg destroyed. 01971_ Slammed into G-34 Mercenary. 01971_ Destabilizing: Core damaged (-12). 01974_ Slammed into G-34 Mercenary. 01980_ Destabilizing: Short circuit. 01980_ Broken Hvy. Ion Engine permanently disabled. 01983_ Slammed into G-34 Mercenary. 01986_ G-34 Mercenary destroyed. [Achievement: Fist Fight] Map ----- +----------------------------------------------------+ | ???????????????????????????# # # #??? | | ???????????????????????????# == + / % #??? | | ???????????????????????????# == # # =!#??? | | ???????????????????????????# = !# # [%#??? | | ?????????????????????############## ######/#??? | | ?????????????????????# ####### #???# #??? | | ?????????????????????# * #???#%#??? | | ?????????????????????+ T % = #???# #??? | | ?????????????????????# #???# #??? | | ?????????????????????# ####### #???# #??? | | ?????????????????????## ##?????########### #??? | | ??????????????????????# #?????##!!! ! # #??? | | ??????????????????????# #?????#%!!! # #??? | | ??????????????????????# #?????##!! # #??? | | ??????????????????????# #??????# # #??? | | ??????????????????????# #??????#####+##+## #??? | | ?????????????????????## ##?????????# ## ## #??? | | ?????????????????????# #?????????# ## ## #??? | | ?????????????????????# #?????????# ## ## #??? | | ?????????????##+###### r #?????????# # # #??? | | ????????????# #?????????# # # #??? | | ??????????? # #?????????# # # #??? | | ????????????# ###g#######?????# #??? | | ????????????##+### ?# g T #?????# #??? | | ?????????????????# ?# =! #?????#% #??? | | ?????????????????# ??# %%@* #?????# #??? | | ?????????????????#???# =% ####### #??? | | ?????????????????????############ ## "Y"%%#??? | | ????????????????????????????????# """ #??? | | ????????????????????????????????# ##+##### #??? | | ????????????????????????????????## ## ???# #??? | | ?????????????????????????????????# ## ???# #??? | | ?????????????????????????????????# ## ??# #??? | | ?????????????????????????????????#%## ?##/#### | | ?????????????????????????????????#!## ## # | | ????????????????????????????????## ## ## # | | ????????????????????????????????# ####### # | | ????????????????????????????????# % + # | | ????????????????????????????????# ## # # | | ????????????????????????????????## ### # # | | ?????????????????????????????????# #?# / # | | ????????????????????????????? ???# ######%####### | | ????????????????????????????? ??? # # # """ # | | ???????????????????????????? ???### + # """ # | | ???????????????????????????? ?????# # #%""" # | | ????????????????????????????# ?????# # #% # | | ???????????????????????###### ?????# + +% # | | ???????????????????????+ ?????# # # # | | ???????????????????????# #????###### # # | | ???????????????????????# ##/########?## ####### | +----------------------------------------------------+ Best States ------------- Heat Dissipation 28 Energy Generation 14 Energy Capacity 280 Matter Stores 300 Matter Capacity 300 Sight Range 16 Terrain Scan Density 10 ECM Strength 1 Armor Coverage 300 Evasion (%) 50 Targeting Accuracy 5 Armor Integrity Analysis 33 Item Schematics ----------------- None Robot Schematics ------------------ None Fabricated ------------ Nothing Alien Tech Used ----------------- None Achievements -------------- Close Call Fist Fight Challenges ------------ None Game ------ Seed CloakingLargeWell Manual? 0 Play Time 00:46:14 Cumulative 5.2 hours Start 2020.03.25 @ 23:38:38 End 2020.03.26 @ 23:40:14 Sessions 3 Manual Loads 0 Difficulty Rogue Special Mode None Game No. 3 Rogue 2 Adventurer 1 Explorer 0 Win Type - Total 0 Types 0/0/0/0/0/0/0 Lore% 3 Gallery% 6 Achievement% 7 Wizard Run 0 Options --------- ASCII 0 Keyboard 0 Movement Mouse Keybinds 0 Fullscreen 1 Font 20/SmallcapsGlow Map View 66x50 Tactical HUD 1 Map Filters NONE Filters NONE Steam 1 RUN: 3fb9f646-e27f-488f-abb5-a6c0e171929b